Cogmind - Beta 16.1 @@@ ROGUE MODE // 2026.06.18 @ 18:32:19 Player: Lolterzard Result: Destroyed by 6S-E4W(R) with Subdweller Beam Cannon Performance ------------- Evolutions (0) 0 Regions Visited (3) 600 Robots Destroyed (21) 105 Value Destroyed (615) 615 Prototype IDs (2) 40 Alien Tech Used (0) 0 Bonus (0) 0 TOTAL SCORE: 1360 Bonus ------- None Cogmind --------- Core Integrity 0/250 Matter 254/300 Energy 100/100 System Corruption 0% Temperature Cool (9) Movement Core (1400) Ox27 Location -10/Subcaves Parts ------- > --- POWER (1) -------- (None) > --- PROPULSION (2) --- (None) > --- UTILITY (2) ------ Huge Storage Unit Seismic Detector > --- WEAPON (2) ------- Assault Rifle > --- INVENTORY (25) --- Light Ion Engine Light Ion Engine Light Treads Light Treads Large Storage Unit Signal Interpreter Light Armor Plating Light Armor Plating Light Armor Plating Small Laser Assault Rifle Assault Rifle Assault Rifle Assault Rifle Assault Rifle Peak State ------------ > --- POWER ------------ Ion Engine > --- PROPULSION ------- Light Treads Light Treads > --- UTILITY ---------- Huge Storage Unit Seismic Detector > --- WEAPON ----------- Assault Rifle Heavy Assault Rifle > --- INVENTORY -------- Ion Engine Light Ion Engine Light Ion Engine Light Treads Light Treads Large Storage Unit Signal Interpreter Light Armor Plating Light Armor Plating Light Armor Plating Small Laser Assault Rifle Assault Rifle Assault Rifle Assault Rifle Assault Rifle Grenade Launcher Grenade Launcher Grenade Launcher [Rating: 9] Favorites ----------- Power Ion Engine Engine Ion Engine Propulsion Light Treads Treads Light Treads Utility Seismic Detector Device Seismic Detector Storage Huge Storage Unit Weapon Assault Rifle Ballistic Gun Assault Rifle Launcher Grenade Launcher Build | -11 -10 -10 -10 ------- Run | Yrd Mat Min Sub Slots Evolved . | . . . . Power . | . . . . Propulsion . | . . . . Utility . | . . . . Weapon . | . . . . Parts Attached 16 | 7 2 1 6 Power 2 | 1 . . 1 Engine 2 | 1 . . 1 Core . | . . . . Reactor . | . . . . Propulsion 2 | 2 . . . Treads 2 | 2 . . . Leg . | . . . . Wheel . | . . . . Hover . | . . . . Flight . | . . . . Utility 4 | 2 2 . . Device 1 | 1 . . . Storage 3 | 1 2 . . Processor . | . . . . Hackware . | . . . . Protection . | . . . . Artifact . | . . . . Weapon 8 | 2 . 1 5 Energy Gun . | . . . . Energy Cannon . | . . . . Ballistic Gun 5 | 2 . 1 2 Ballistic Cannon . | . . . . Launcher 3 | . . . 3 Special Weapon . | . . . . Impact Weapon . | . . . . Slashing Weapon . | . . . . Piercing Weapon . | . . . . Special Melee Weapon . | . . . . Unidentified Prototypes . | . . . . Parts Lost 8 | . . . 8 Power 2 | . . . 2 Propulsion 2 | . . . 2 Utility . | . . . . Weapon 4 | . . . 4 Highest Loss Streak 4 | . . . 4 To Critical Strikes . | . . . . Average Backups 14 | 3 9 18 17 Power 2 | 1 2 3 2 Propulsion 2 | 1 2 1 2 Utility 3 | . . 4 5 Weapon 6 | . 3 8 8 Tool/Special . | . . . . Unused Backups 13 | . 2 . 11 Power 2 | . . . 2 Propulsion 4 | . 2 . 2 Utility 4 | . . . 4 Weapon 3 | . . . 3 Tool/Special . | . . . . Average Slot Usage (%) 93 | . 100 100 88 Engine 10 | . 14 14 8 Treads 25 | . 28 28 23 Device 14 | . 14 14 14 Storage 14 | . 14 14 14 Ballistic Gun 15 | . 28 28 4 Launcher 12 | . . . 22 Peak Build Rating 9 | 7 8 9 9 Average Rating 7 | 5 7 8 7 On Entrance 6 | . 7 8 9 Avg Prop Armor Cover (%) 27 | 27 . . . Naked Turns . | . . . . Heaviest Build 92 | 15 90 91 92 Greatest Support 40 | 40 40 40 40 Greatest Overweight (x) 28 | 4 2 2 28 Average Overweight (x) 1 | . . 2 2 Largest Inventory Capacity 25 | 8 25 25 25 Average Capacity 21 | 7 14 25 25 Most Carried 19 | 5 13 19 19 Average Carried 14 | 3 9 18 17 Final Capacity 25 | 8 25 25 25 Final Carried 19 | 5 13 19 15 Class Distribution -------------------- 100% | Mutant Dominant Class ---------------- Mutant | -10/Materials Mutant | -10/Mines Mutant | -10/Subcaves Resources | -11 -10 -10 -10 ----------- Run | Yrd Mat Min Sub Matter Collected 811 | 263 150 142 256 Remotely . | . . . . Salvage Created 765 | 132 279 215 139 Parts 35 | 6 10 13 6 Haulers Intercepted 1 | . 1 . . Recyclers Shooed . | . . . . Parts Field Recycled . | . . . . Retrieved Matter . | . . . . Parts Self-Destructed 6 | . . . 6 Prevented . | . . . . Parts Restored . | . . . . Kills | -11 -10 -10 -10 ------- Run | Yrd Mat Min Sub Combat Hostiles Destroyed 14 | . 5 4 5 Guns 11 | . 5 4 2 AOE 3 | . . . 3 Classes Destroyed 7 | 2 3 1 1 Tunneler 3 | 3 . . . Hauler 1 | . 1 . . Recycler 1 | 1 . . . Watcher 2 | . 2 . . Grunt 7 | . 5 2 . Sentry 2 | . . 2 . Subdweller 5 | . . . 5 Best Kill Streak 2 | 2 2 2 2 Combat Bots Only 2 | . 2 2 2 Max Kills in Single Turn 1 | 1 1 1 1 Gunslinging . | . . . . Exploded 1 | . . . 1 Melee . | . . . . Uniques/NPCs Destroyed . | . . . . Combat | -11 -10 -10 -10 -------- Run | Yrd Mat Min Sub Hostile Shots Fired 94 | . 18 24 52 Missed 29 | . 7 4 18 Hits 65 | . 11 20 34 Projectile 65 | . 11 20 34 Damage Taken 1220 | . 129 278 813 Core 274 | . 11 48 215 Absorbed by Shields . | . . . . Core Remaining (%) 100 | 100 . . . Volleys Fired 66 | 7 21 15 23 Largest 2 | 2 2 2 2 Hottest 60 | 40 40 43 60 Shots Fired 122 | 14 42 30 36 Gun 105 | 14 42 30 19 Cannon . | . . . . Launcher 17 | . . . 17 Special . | . . . . Kinetic 105 | 14 42 30 19 Thermal . | . . . . Explosive 17 | . . . 17 Electromagnetic . | . . . . Robot Hit Streak 10 | 3 10 9 8 Robot Miss Streak 3 | 3 1 2 1 Penetration Max . | . . . . Secondary Targets 1 | . . 1 . Max Gunslinging Chain 1 | . . 1 . Shots Hit Robots 76 | 7 30 20 19 Core Hits 37 | 4 14 10 9 Critical Kills . | . . . . Critical Parts Destroyed 1 | . 1 . . Critical Strikes 1 | . 1 . . Destroy 1 | . 1 . . Melee Attacks . | . . . . Impact . | . . . . Slashing . | . . . . Piercing . | . . . . Sneak Attacks . | . . . . Combat Hostiles . | . . . . Follow-up Attacks . | . . . . Damage Inflicted 1701 | 93 386 290 932 Guns 972 | 93 376 290 213 Cannons . | . . . . Explosions 719 | . . . 719 Melee . | . . . . Ramming 10 | . 10 . . Kinetic 972 | 93 376 290 213 Thermal . | . . . . Explosive 719 | . . . 719 Electromagnetic . | . . . . Impact . | . . . . Slashing . | . . . . Piercing . | . . . . Highest Corruption . | . . . . Average Corruption . | . . . . Corruption Purged . | . . . . Corruption Blocked . | . . . . Overload Shots . | . . . . Overflow Damage . | . . . . Projectiles . | . . . . Explosions . | . . . . Melee . | . . . . Knockbacks . | . . . . Impact . | . . . . Kinetic . | . . . . Secondary . | . . . . Self-Inflicted Damage 3 | . . . 3 Shots 1 | . . . 1 Rammed 1 | . 1 . . Targets Rammed 1 | . 1 . . Kicked . | . . . . Crushed . | . . . . Highest Temperature 11 | . . 11 . Average Temperature 3 | . . 3 . Received Heat Transfer 396 | . 69 123 204 Siege Activations . | . . . . Martial Activations . | . . . . Shielding Activations . | . . . . Robots Disrupted . | . . . . Combat Hostiles . | . . . . Robots Corrupted . | . . . . Combat Hostiles . | . . . . Parts Fried . | . . . . Impact Corruptions . | . . . . Robots Melted . | . . . . Combat Hostiles . | . . . . Parts Melted . | . . . . Heat Transferred . | . . . . Parts Sabotaged . | . . . . Parts Stolen . | . . . . Parts Stripped . | . . . . Power Chain Reactions . | . . . . Alert | -11 -10 -10 -10 ------- Run | Yrd Mat Min Sub Maximum Alert Level . | . . . . Low Security (%) 100 | 100 100 100 . Level 1 . | . . . . Level 2 . | . . . . Level 3 . | . . . . Level 4 . | . . . . Level 5 . | . . . . High Security . | . . . . Max Security . | . . . . Peak Influence 50 | 10 40 50 . Initial . | . . . . Average 7 | 1 7 8 . Influence Increases 263 | 20 153 90 . Destroy 0b10 Robot/C 180 | . 100 80 . Destroy 0b10 Robot/NC 35 | 20 15 . . Destroy Leader 36 | . 26 10 . Successful Hack 12 | . 12 . . Influence Decreases 263 | 20 153 90 . Time Decay 263 | 20 153 90 . Squads Dispatched 1 | . 1 . . Investigation . | . . . . Extermination . | . . . . Reinforcement 1 | . 1 . . Assault . | . . . . Garrison . | . . . . Intercept . | . . . . Searches Triggered . | . . . . Construction Impeded . | . . . . Haulers Reinforced . | . . . . Active Scanning Responses . | . . . . Cargo Convoy Interrupts . | . . . . Stealth | -11 -10 -10 -10 --------- Run | Yrd Mat Min Sub Distress Signals . | . . . . Communications Jammed . | . . . . Distress Signals . | . . . . Times Spotted 18 | . 7 4 7 Peak Tracking Total 2 | . 2 2 2 Tactical Retreats . | . . . . Traps | -11 -10 -10 -10 ------- Run | Yrd Mat Min Sub Traps Triggered . | . . . . Indirectly . | . . . . Trap Hack Attempts . | . . . . Triggered . | . . . . Disarmed . | . . . . Reprogrammed . | . . . . Reused . | . . . . Traps Extracted . | . . . . Installed . | . . . . Triggered . | . . . . Machines | -11 -10 -10 -10 ---------- Run | Yrd Mat Min Sub Machines Disabled . | . . . . Max in Single Turn . | . . . . Machines Repaired . | . . . . Machines Dismantled . | . . . . Machines Sabotaged . | . . . . Overloaded Fab Kills . | . . . . Hacking | -11 -10 -10 -10 --------- Run | Yrd Mat Min Sub Machines Accessed 3 | . 3 . . Terminals 3 | . 3 . . Fabricators . | . . . . Repair Stations . | . . . . Recycling Units . | . . . . Scanalyzers . | . . . . Garrison Access . | . . . . Total Hacks 7 | . 7 . . Successful 5 | . 5 . . Failed 2 | . 2 . . Catastrophic . | . . . . Database Lockouts . | . . . . Manual . | . . . . Terminals 7 | . 7 . . Fabricators . | . . . . Repair Stations . | . . . . Recycling Units . | . . . . Scanalyzers . | . . . . Garrison Access . | . . . . Terminal Hacks 5 | . 5 . . Prototype ID Bank 1 | . 1 . . Alert Level 1 | . 1 . . Hauler Manifests 2 | . 2 . . Registered Components 1 | . 1 . . Fabricator Hacks . | . . . . Repair Station Hacks . | . . . . Recycling Unit Hacks . | . . . . Scanalyzer . | . . . . Garrison Access Hacks . | . . . . Unauthorized Hacks . | . . . . Terminals . | . . . . Fabricators . | . . . . Repair Stations . | . . . . Recycling Units . | . . . . Scanalyzers . | . . . . Garrison Access . | . . . . Data Cores Recovered . | . . . . Used . | . . . . Hacking Detections . | . . . . Full Trace Events . | . . . . Feedback Events . | . . . . Feedback Blocked . | . . . . Robot Schematics Acquired . | . . . . Robots Built . | . . . . Authchips . | . . . . Time . | . . . . Total Robot Build Rating . | . . . . Part Schematics Acquired . | . . . . Parts Built . | . . . . Authchips . | . . . . Time . | . . . . Total Part Build Rating . | . . . . Part Studies Acquired . | . . . . Parts Repaired . | . . . . Time . | . . . . Parts Recycled . | . . . . Recycled Matter . | . . . . Retrieved Matter . | . . . . Retrieved Components . | . . . . Parts Scanalyzed . | . . . . Part Schematics Acquired . | . . . . Parts Damaged . | . . . . Bothacking | -11 -10 -10 -10 ------------ Run | Yrd Mat Min Sub Used RIF Installer . | . . . . Robots Hacked . | . . . . Non-combat . | . . . . Combat . | . . . . Robot Hacks Applied . | . . . . Relay Couplers Released . | . . . . Fabnet Peak Effective % . | . . . . Robots Rewired . | . . . . Allies Hacked . | . . . . Hacks Repelled . | . . . . Allies | -11 -10 -10 -10 -------- Run | Yrd Mat Min Sub Total Allies . | . . . . Largest Group . | . . . . Highest-Rated Group . | . . . . Highest-Rated Ally . | . . . . Total Orders . | . . . . Ally Attacks . | . . . . Total Damage . | . . . . Kills . | . . . . Allies Corrupted . | . . . . Allies Melted . | . . . . Intel | -11 -10 -10 -10 ------- Run | Yrd Mat Min Sub Active Infowar (turns) 2670 | 20 710 477 1463 Seismic 2670 | 20 710 477 1463 Robot Analysis Total . | . . . . Derelict Logs Recovered 1 | . . . 1 Drone Launches . | . . . . Drone Recoveries . | . . . . Exploration | -11 -10 -10 -10 ------------- Run | Yrd Mat Min Sub Turns Passed 2799 | 149 710 477 1463 Spaces Moved 930 | 84 324 133 389 Core 33 | 32 . . 1 Treads 897 | 52 324 133 388 Legs . | . . . . Wheels . | . . . . Hover . | . . . . Flight . | . . . . Fastest Speed 50 | 50 160 320 320 Average Speed 271 | 134 185 320 357 Slowest Speed 1450 | 250 320 320 1450 Overloaded Moves . | . . . . Propulsion Burnouts . | . . . . Robots Hopped . | . . . . Potential Cave-ins . | . . . . Cave-ins Triggered . | . . . . Exploration Rate (%) 30 | 5 49 35 33 Regions Visited 3 Branch Regions 2 Pre-discovered Areas . | . . . . Known Exits Taken . | . . . . Unknown Exits Taken 3 | 1 1 1 . Scrap Searched 1 | . . 1 . Spaces Dug . | . . . . Terrain Destroyed 65 | . . . 65 Melee . | . . . . Projectile . | . . . . AOE 65 | . . . 65 Terrain Rammed . | . . . . Walls Destroyed . | . . . . Machines Disabled . | . . . . Actions | -11 -10 -10 -10 --------- Run | Yrd Mat Min Sub Total 1074 | 102 393 156 423 Wait 35 | . 32 3 . Move 927 | 83 323 132 389 Hop . | . . . . Pick Up 20 | 5 10 5 . Fast Attach 7 | 7 . . . Attach 4 | . . . 4 Detach . | . . . . Swap 10 | . 2 1 7 Drop 4 | . 4 . . Fire 66 | 7 21 15 23 Melee . | . . . . Ram . | . . . . Kick . | . . . . Crush 1 | . 1 . . Escape Stasis . | . . . . Rewire . | . . . . Trap . | . . . . Miscellaneous . | . . . . Route ------- -11/Scrapyard -10/Materials (discovered 2 exits: [*Mat] / [*Min]) -10/Mines (discovered 2 exits: [*Mat] / [*Sub]) -10/Subcaves (discovered 2 exits: [*Mat x2]) History --------- Turn | Location | Event 5 | -11/Scrapyard | Discovered new exit (range 13) 150 | -11/Scrapyard | Entered Materials 303 | -10/Materials | Build established: Mutant 463 | -10/Materials | Discovered new exit (range 15) 581 | -10/Materials | Discovered new exit (range 10) 860 | -10/Materials | Entered Mines 1174 | -10/Mines | Discovered new exit (range 9) 1309 | -10/Mines | Discovered new exit (range 10) 1337 | -10/Mines | Entered Subcaves 1886 | -10/Subcaves | Shifting Twisted Machinery released Sub. Laser 1971 | -10/Subcaves | Discovered new exit (range 15) 2185 | -10/Subcaves | Ambushed by Subdweller buried in earth 2192 | -10/Subcaves | Core integrity fell below 50% 2513 | -10/Subcaves | Shifting Twisted Machinery released Sub. Monowheel 2660 | -10/Subcaves | Discovered new exit (range 7) 2674 | -10/Subcaves | Learned Materials machine intel 2788 | -10/Subcaves | Core integrity fell below 20% 2800 | -10/Subcaves | Destroyed by 6S-E4W(R) with Subdweller Beam Cannon Last Messages --------------- 02339_ Subatomizers dissect the Sub. Power Source. 02359_ Lgt. Treads destroyed. 02361_ Subatomizers dissect the Sub. Power Source. 02361_ SZ-SSP(R) affixes Scrap Shield Fragment to Scrap Shield. 02364_ SZ-SSP(R) destroyed. 02365_ The unstable cave ceiling collapses. 02376_ Subatomizers dissect the Sub. Power Source. 02386_ Acquired 31 matter. 02391_ Subatomizers dissect the Sub. Power Source. 02415_ Subatomizers dissect the Sub. Power Source, destroying it. 02424_ Acquired 6 matter. 02468_ Acquired 10 matter. 02475_ Subatomizers dissect the Disposable Heat Sink. Sub. Monowheel falls loose from the Twisted Machinery. 02660_ EXIT=FOUND 02674_ Acquired derelict log, extracted data. Data stored: Materials machine intel. 02766_ Lgt. Treads destroyed. 02785_ Grenade Launcher destroyed. 02794_ Hvy. Assault Rifle destroyed. Map ----- +----------------------------------------------------+ | ?????????????????????????????????????????????????? | | ?????????????????????????????????????????????????? | | ?????????????????????????????????????????????????? | | ?????????????????????????????????????????????????? | | ?????????????????????????????????????????????????? | | ?????????????????????????????????????????????????? | | ?????????????????????????????????????????????????? | | ?????????????????????????????????????????????????? | | ?????????????????????????????????????????????????? | | ?????????????????????????????????????????????????? | | ?????????????????????????????????????????????????? | | ?????????????????????????????????????????????????? | | ?????????????????????????????????????????????????? | | ?????????????????????????????????????????????????? | | ?????????????????????????????????????????????????? | | ???????????????????????????????????????????????### | | ??????????????????????????????????????????????## # | | ??????????????????????????###?????????????????# | | ??????????????? ##?####### ########??????????# | | ?????????????? # ;# ## #####?####### | | ??????????????? ### ## # # | | ???????????????? # | | ???????????????????????# ## # ## | | ???????????????????????# #### #######? | | ???????????????????????# #####??## #####???? | | ?????????????????????### @ ##???????# ## ###? | | ?????????????????????# ##????????# #?# % ## | | ????????????????????# ?????????# #?## | | ????????????????????# RR ?????????## < #?## | | ???????????????????# ##?????????# " #?### | | ???????????????????# ?????????? "" #??### | | ???????????????????# ?????????? " ## #????# | | ?????????????????? ?????????"%" #?# #????# | | ????????????????? #?????????#""%#??##????? | | ???????????????? #??????????#"" #????????? | | ???????????????## ##### ???????????#"?##????????? | | ????????????????##????# ??????????? "???????????? | | ??????????????????????# ????????????????????????? | | ??????????????????????# ????????????????????????? | | ?????????????????????? ????????????????????????? | | ??????????????????????? ????????????????????????? | | ???????????????????????##????????????????????????? | | ?????????????????????????????????????????????????? | | ?????????????????????????????????????????????????? | | ?????????????????????????????????????????????????? | | ?????????????????????????????????????????????????? | | ?????????????????????????????????????????????????? | | ?????????????????????????????????????????????????? | | ?????????????????????????????????????????????????? | | ?????????????????????????????????????????????????? | +----------------------------------------------------+ Best States ------------- Heat Dissipation 25 Energy Generation 10 Energy Capacity 250 Matter Stores 300 Matter Capacity 300 Sight Range 16 Terrain Scan Density 10 Evasion (%) 50 Recoil Reduction 2 Item Schematics ----------------- None Robot Schematics ------------------ None Fabricated ------------ Nothing Repaired ---------- Nothing Studied --------- None Alien Tech Used ----------------- None Achievements -------------- None Challenges ------------ None Game ------ Seed BackupDecoyCloak Manual? 0 Play Time 00:10:31 Cumulative 40.2 hours Start 2026.06.18 @ 18:24:51 End 2026.06.18 @ 18:32:19 Sessions 1 Manual Loads 0 Difficulty Rogue Special Mode None Game No. 73 Rogue 73 Adventurer 0 Explorer 0 Win Type - Total 0 Types 0/0/0/0/0/0/0/0/0/0 Lore% 22 Gallery% 22 Achievement% 20 Wizard Run 0 Options --------- Layout 0 ASCII 0 Keyboard 0 Movement Mouse Keybinds 0 Fullscreen 2 Font 24/Smallcaps Map View 76x50 Zoom Use 0% Tactical HUD 1 Map Filters NONE Filters NONE Steam 1 RUN: a85f1876-eaec-4507-9e28-1d2eae3924f2